[Event "Swietokrzyskie GM Chess-ch 2022"]
[Site "Zagnansk"]
[Date "2022.04.30"]
[Round "1.1"]
[White "Mikrut, IM Dariusz"]
[Black "Kowalski, IM Igor"]
[Result "0-1"]
[ECO "D12"]
[WhiteElo "2361"]
[BlackElo "2370"]
[Annotator "TA"]
[PlyCount "90"]
[EventDate "2022.04.29"]
[EventCountry "POL"]
[SourceTitle "playchess.com"]
[Source "ChessBase"]
[SourceQuality "1"]
[TimeControl "40/5400+30:1800+30"]

{[%evp 15,90,40,39,0,8,0,7,12,0,15,57,62,58,33,50,67,41,41,24,0,0,0,0,0,0,0,0,0,0,0,8,7,8,0,0,0,0,-18,-14,-116,-108,-101,0,0,0,-10,0,0,19,0,0,0,0,0,0,0,0,0,0,-18,-18,-20,-24,-453,-448,-386,-433,-12610,-12817,-7458,-7458,-7458,-7432,-6506,-6343,-5609,-5513]} 1. d4 {[%emt 0:00:13]} d5 {[%emt 0:00:04]} 2. c4 {[%emt 0:00:46]} c6 {[%emt 0:00:03]} 3. Nf3 {[%emt 0:00:12]} Nf6 {[%emt 0:00:05]} 4. e3 {[%emt 0:01:04]} Bf5 {[%emt 0:00:07]} 5. Nc3 {[%emt 0:00:31]} e6 {[%emt 0:00:05]} 6. Nh4 {[%emt 0:00:06]} Be4 {[%emt 0:00:05]} 7. f3 {[%emt 0:01:21]} Bg6 {[%emt 0:00:05]} 8. Qb3 {[%emt 0:02:33]} Qc7 {[%emt 0:00:09]} 9. Kf2 {[%emt 0:02:46] D12: Slav Defence: 3 Nf3 Nf6 4 e3 Bf5.} Nbd7 {[%emt 0:05:38]} 10. g3 {[%emt 0:04:04]} dxc4 {[%emt 0:09:14] [#]} 11. Bxc4 $146 {[%emt 0:06:51] The position is equal.} ({Predecessor:} 11. Qxc4 e5 12. Bg2 Bd6 13. Re1 O-O 14. Nxg6 hxg6 15. Ne2 c5 16. Kf1 Rfd8 17. dxc5 {½-½ (41) Arabidze,M (2332)-Voit,D (2315) Albena 2011}) 11... b5 {[%emt 0:00:41]} 12. Be2 {[%emt 0:07:14]} a5 {[%emt 0:08:44]} 13. Nxg6 {[%emt 0:03:18]} hxg6 {[%emt 0:00:12]} 14. Bd2 {[%emt 0:03:08]} (14. Kg2 {looks sharper.} Rd8 15. Qc2 b4 16. Ne4) 14... Bd6 {[%emt 0:04:25]} 15. Kg2 {[%emt 0:00:20]} O-O {[%emt 0:09:38]} 16. Rac1 {[%emt 0:11:24][%cal Oc3b5] Threatens to win with Nxb5!} Qa7 {[%emt 0:10:11]} 17. g4 {[%emt 0:13:59]} b4 {[%emt 0:08:32]} 18. Na4 {[%emt 0:00:59]} c5 {[%emt 0:00:40]} 19. dxc5 {[%emt 0:13:57]} Nxc5 {[%emt 0:00:25]} 20. Nxc5 {[%emt 0:00:21]} Bxc5 {[%emt 0:00:04]} 21. e4 $1 {[%emt 0:06:26]} Rfd8 {[%emt 0:11:54]} 22. Rhd1 {[%emt 0:03:03]} Rxd2 {[%emt 0:06:42]} 23. Rxd2 {[%emt 0:01:18] Rdc2 is the strong threat.} Be3 $132 {[%emt 0:00:03][%mdl 2048] Black has counterplay} 24. Rcd1 {[%emt 0:03:44]} Bxd2 {[%emt 0:00:15]} 25. Rxd2 {[%emt 0:00:04]} Qc5 {[%emt 0:01:13][%cal Of6h5]} 26. Rc2 {[%emt 0:01:32]} Qg5 {[%emt 0:02:24]} 27. Kh1 {[%emt 0:06:54]} (27. Qd3 $11 {keeps the balance.}) 27... Rd8 $17 {[%emt 0:01:04]} 28. a3 {[%emt 0:01:24]} Qh4 {[%emt 0:10:56] Black is more active.} (28... Rd2 $17) 29. Kg2 $11 {[%emt 0:01:06]} Qe1 {[%emt 0:02:15]} 30. axb4 {[%emt 0:00:22]} axb4 {[%emt 0:00:59]} 31. Qe3 $1 {[%emt 0:01:43] Prevents Rd2.} e5 {[%emt 0:04:45]} ({Resist} 31... Rd1 32. Rc8+ Kh7 33. Qf2 Qh1+ 34. Kh3 $16) 32. Rc1 {[%emt 0:01:59]} Qd2 {[%emt 0:00:32]} 33. Qxd2 {[%emt 0:00:27]} Rxd2 {[%emt 0:00:01][%mdl 4096] Endgame KRB-KRN} 34. Rc8+ {[%emt 0:00:08]} Kh7 {[%emt 0:00:03]} 35. Kf1 {[%emt 0:00:03]} Rxb2 {[%emt 0:00:44]} 36. Rc7 {[%emt 0:02:10]} b3 {[%emt 0:02:54][%cal Bb4b3,Bb3b2][%mdl 32] White must now prevent ...Rc2.} 37. Rxf7 {[%emt 0:00:17]} Rc2 {[%emt 0:00:11] Hoping for ...b2.} 38. Rb7 $1 {[%emt 0:00:12]} b2 {[%emt 0:00:04]} 39. Kf2 $2 {[%emt 0:00:35][%mdl 8192] [#] This move loses the game for White.} (39. Bd3 $11 {and White is okay.} Rxh2 40. Ke1) 39... Nd7 $1 $19 {[%emt 0:00:46][%mdl 512]} 40. Ke3 {[%emt 0:00:00]} Nc5 {[%emt 0:00:00]} 41. Rb4 {[%emt 0:20:19]} (41. Bd3 $142 Rc3 42. Rxb2 Rxd3+ 43. Kf2) 41... Rc3+ {[%emt 0:17:50]} 42. Kd2 {[%emt 0:00:53]} Rb3 {[%emt 0:00:06]} 43. Rxb3 {[%emt 0:00:59]} Nxb3+ {[%emt 0:00:03]} 44. Kc2 {[%emt 0:00:09]} Nd4+ {[%emt 0:00:03]} 45. Kxb2 {[%emt 0:00:05]} Nxe2 {[%emt 0:00:03] Weighted Error Value: White=0.50/Black=0.06 (flawless)} 0-1

[Event "Swietokrzyskie GM Chess-ch 2022"]
[Site "Zagnansk"]
[Date "2022.04.30"]
[Round "1.2"]
[White "Pacan-Milej, FM Kosma"]
[Black "Budisavljevic, GM Luka"]
[Result "0-1"]
[ECO "A40"]
[WhiteElo "2404"]
[BlackElo "2509"]
[Annotator "TA"]
[PlyCount "76"]
[EventDate "2022.04.29"]
[EventCountry "POL"]
[SourceTitle "playchess.com"]
[Source "ChessBase"]
[SourceQuality "1"]
[TimeControl "40/5400+30:1800+30"]

{[%evp 17,76,23,21,8,21,13,4,0,0,0,0,0,0,0,0,0,0,0,0,0,0,0,0,-17,0,-6,0,0,0,0,0,-1,0,0,0,-101,-93,-95,-101,-114,-102,-118,-115,-105,-108,-247,-247,-254,-250,-218,-139,-231,-256,-602,-525,-869,-608,-1167,-1039,-938,-559]} 1. d4 {[%emt 0:00:03]} e6 {[%emt 0:00:08]} 2. c4 {[%emt 0:00:11]} b6 {[%emt 0:00:12]} 3. Nf3 {[%emt 0:09:15]} Bb7 {[%emt 0:00:06]} 4. g3 {[%emt 0:01:11]} Bb4+ {[%emt 0:00:06]} 5. Bd2 {[%emt 0:00:04]} Bxf3 {[%emt 0:00:17]} 6. exf3 {[%emt 0:00:03]} Bxd2+ {[%emt 0:00:06]} 7. Qxd2 {[%emt 0:00:05]} Nf6 {[%emt 0:01:01]} 8. Nc3 {[%emt 0:03:57]} d5 {[%emt 0:00:18]} 9. cxd5 {[%emt 0:06:40]} Nxd5 {[%emt 0:00:06]} 10. Bg2 {[%emt 0:00:58] A40: Unusual replies to 1 d4.} Nc6 {[%emt 0:00:05]} 11. f4 {[%emt 0:02:05]} Nce7 {[%emt 0:00:06]} 12. O-O {[%emt 0:01:39] The position is equal.} O-O {[%emt 0:00:08]} 13. Ne4 {[%emt 0:06:51]} c6 {[%emt 0:00:13]} 14. Rac1 {[%emt 0:01:46]} Rc8 {[%emt 0:01:33]} 15. Ng5 {[%emt 0:07:57]} Qd6 {[%emt 0:07:42]} 16. Rfd1 {[%emt 0:03:22]} Rfd8 {[%emt 0:02:21] [#]} 17. Nf3 $146 {[%emt 0:08:41]} ({Predecessor:} 17. Qe2 h6 18. Nf3 Nf5 19. Rc4 Rc7 20. a3 c5 21. Qe5 f6 22. Qe1 cxd4 23. Nxd4 Rxc4 24. Nxe6 {1-0 (67) Lysyj,I (2618)-Maghsoodloo,P (2594) Moscow 2018}) 17... h5 {[%emt 0:10:31]} 18. Ne5 {[%emt 0:10:07]} Nf5 {[%emt 0:00:56]} 19. Qe2 {[%emt 0:04:21]} g6 {[%emt 0:04:09]} 20. a3 {[%emt 0:05:18]} Nde7 {[%emt 0:02:12]} 21. Nf3 {[%emt 0:02:56]} Rc7 {[%emt 0:13:33][%cal Bc8c7,Bc7d7,Bd7d6][%mdl 32]} 22. Rd2 {[%emt 0:02:35]} Rcd7 {[%emt 0:03:47]} 23. Rcd1 {[%emt 0:03:26]} Qc7 {[%emt 0:04:16]} 24. Qc4 {[%emt 0:01:16]} Rd6 {[%emt 0:01:56]} 25. h3 {[%emt 0:05:17]} Nd5 {[%emt 0:06:22][%cal Oh5h4]} 26. Rc1 {[%emt 0:04:55] [#]} (26. Qc1 $11) 26... h4 $1 $17 {[%emt 0:02:41]} 27. g4 {[%emt 0:02:48]} Nfe7 {[%emt 0:00:02][%cal Bf5e7,Be7d5,Bd5f4][%mdl 32] Pair of Knights!} 28. Nxh4 {[%emt 0:02:20]} Nxf4 {[%emt 0:00:01][%cal Od6d4] aiming for ...Rxd4!} 29. Nf3 {[%emt 0:00:21]} Nxg2 {[%emt 0:06:10]} 30. Kxg2 {[%emt 0:00:03]} Nd5 {[%emt 0:00:01]} 31. Ne5 {[%emt 0:02:57] White does not recover from this.} (31. Qb3 $17) 31... Nf4+ $19 {[%emt 0:03:06]} 32. Kf3 {[%emt 0:00:06][%cal Re5c6]} g5 {[%emt 0:11:22] Threatens to win with ...c5.} 33. Nxc6 {[%emt 0:01:53]} Rf8 {[%emt 0:00:04] ...f5 is the strong threat.} 34. Ne5 {[%emt 0:01:10]} (34. Rdc2 $17 {might work better.}) 34... Qb7+ {[%emt 0:00:05]} 35. d5 $2 {[%emt 0:00:23]} (35. Ke3) 35... f6 {[%emt 0:01:29] Black is clearly winning.} 36. Nc6 {[%emt 0:00:57][%cal Od5e6]} Qh7 {[%emt 0:04:16]} 37. Rh1 {[%emt 0:00:31]} exd5 {[%emt 0:00:06]} 38. Qc2 {[%emt 0:00:29] [#]} Rxc6 $1 {[%emt 0:00:18][%mdl 512] Weighted Error Value: White=0.61/Black=0.13 (very precise)} 0-1

[Event "Swietokrzyskie GM Chess-ch 2022"]
[Site "Zagnansk"]
[Date "2022.04.30"]
[Round "1.5"]
[White "Samunenkov, FM Ihor"]
[Black "Tazbir, GM Marcin"]
[Result "1/2-1/2"]
[ECO "A45"]
[WhiteElo "2372"]
[BlackElo "2506"]
[Annotator "TA"]
[PlyCount "168"]
[EventDate "2022.04.29"]
[EventCountry "POL"]
[SourceTitle "playchess.com"]
[Source "ChessBase"]
[SourceQuality "1"]
[TimeControl "40/5400+30:1800+30"]

{[%evp 9,168,0,0,0,0,0,0,0,0,0,0,-8,0,0,0,0,2,0,0,0,-1,-57,-9,-22,-27,-25,-35,-27,-23,-28,-12,-12,-9,-16,0,-23,0,0,0,0,0,0,0,-23,-14,-14,0,0,0,-10,-9,-26,-19,-41,-7,-32,-29,-34,-30,-30,-22,-190,-148,-157,-122,-146,-109,-137,-19,-26,-26,-26,-27,-18,-18,-15,-15,-27,-10,-90,-103,-103,-100,-100,-33,-33,-33,-33,-33,-47,-33,-33,-9,-39,-39,-39,-9,-9,-9,-10,-12,-22,-22,-28,-28,-33,-22,-16,-15,-14,-15,-15,-18,-28,-8,-8,-8,-8,-8,-21,-8,-33,-8,-8,0,-41,-8,-8,-8,-8,-8,-8,-8,-8,-8,-8,-8,-8,0,0,0,0,0,0,0,0,0,0,0,0,-8,-8,-8,-8,0,-8,0,0,0,0,0]} 1. d4 {[%emt 0:00:03]} Nf6 {[%emt 0:00:07]} 2. Nc3 {[%emt 0:00:08]} d5 {[%emt 0:00:19]} 3. Bf4 {[%emt 0:00:08]} c5 {[%emt 0:00:37]} 4. e4 {[%emt 0:02:00]} Nxe4 {[%emt 0:00:14]} 5. Nxe4 {[%emt 0:00:26]} dxe4 {[%emt 0:00:05]} 6. dxc5 {[%emt 0:00:20] D00: 1 d4 d5: Unusual lines.} Qa5+ {[%emt 0:00:23]} 7. c3 {[%emt 0:00:54] aiming for b4.} Qxc5 {[%emt 0:00:50]} 8. Qa4+ {[%emt 0:01:15]} Nc6 {[%emt 0:00:20]} 9. Qxe4 {[%emt 0:00:20]} g6 {[%emt 0:00:20]} 10. Nf3 {[%emt 0:07:05]} Bg7 {[%emt 0:04:42][%cal Og7c3]} 11. Qe3 {[%emt 0:05:10]} Qxe3+ {[%emt 0:03:25]} 12. Bxe3 {[%emt 0:03:58] [#]} Be6 $146 {[%emt 0:02:00]} ({Predecessor:} 12... O-O 13. Be2 b6 14. O-O Bb7 15. Rfd1 Rfd8 16. Nd2 Rd7 17. Nb3 Rxd1+ 18. Rxd1 Rd8 19. Rxd8+ Nxd8 {½-½ (46) Niemann,H (2642)-Hakobyan,A (2601) Chess.com INT 2022}) 13. Ng5 {[%emt 0:09:29]} Bf5 {[%emt 0:02:34][%cal Be6f5,Bf5e4,Be4c6,Bc6b5][%mdl 32]} 14. Bc4 {[%emt 0:02:33]} O-O {[%emt 0:03:13]} 15. Bd5 {[%emt 0:05:42]} (15. O-O-O $11) 15... Na5 {[%emt 0:12:05]} (15... Ne5 $15 {was preferrable.} 16. O-O e6) 16. Ke2 {[%emt 0:17:12]} h6 {[%emt 0:12:42]} (16... Bd7 {with more complications.} 17. Rhd1 Bb5+ 18. Kd2 h6) 17. Nf3 {[%emt 0:01:07][%cal Bg5f3,Bf3e1,Be1d3,Bd3c5][%mdl 32]} e6 {[%emt 0:15:06]} 18. Bb3 {[%emt 0:00:19]} Be4 {[%emt 0:01:20]} 19. Rhd1 {[%emt 0:05:04]} a6 {[%emt 0:02:26]} 20. Ne1 {[%emt 0:07:24]} Rfc8 {[%emt 0:05:54]} 21. f3 {[%emt 0:01:47]} Bc6 {[%emt 0:00:07]} 22. Nd3 {[%emt 0:04:22]} Bb5 {[%emt 0:04:48]} 23. Kf2 {[%emt 0:02:27]} Rd8 {[%emt 0:02:23]} 24. Nc5 {[%emt 0:03:58]} Nxb3 {[%emt 0:00:15]} 25. axb3 {[%emt 0:00:34]} Bc6 {[%emt 0:00:04]} 26. b4 {[%emt 0:02:58]} Rxd1 {[%emt 0:06:13]} 27. Rxd1 {[%emt 0:00:06]} Re8 {[%emt 0:00:05]} 28. f4 {[%emt 0:06:09]} f6 {[%emt 0:03:19]} 29. g4 {[%emt 0:03:07]} g5 {[%emt 0:02:57]} 30. Kg3 {[%emt 0:04:27]} Kf7 {[%emt 0:01:00]} 31. h3 {[%emt 0:02:30]} gxf4+ {[%emt 0:00:57]} 32. Kxf4 {[%emt 0:01:11]} h5 {[%emt 0:00:37] Strongly threatening ...Bh6+.} 33. Kg3 $1 {[%emt 0:00:23]} hxg4 {[%emt 0:01:43]} 34. hxg4 {[%emt 0:00:03]} f5 {[%emt 0:01:16]} 35. Rf1 $2 {[%emt 0:01:24]} (35. gxf5 $11 exf5 36. Bd4) 35... Be5+ {[%emt 0:00:10]} 36. Bf4 {[%emt 0:00:23] [#]} Bf6 {[%emt 0:00:06] This bishop pair is nice.} ({Much less strong is} 36... Bb5 37. Re1 Bxf4+ 38. Kxf4 $14) 37. gxf5 {[%emt 0:01:12]} Rg8+ {[%emt 0:03:57]} ({And not} 37... exf5 38. Nd3 $17) 38. Kf2 {[%emt 0:01:02] [#]} exf5 {[%emt 0:00:17]} (38... Rg2+ $1 $17 39. Ke1 Rxb2 40. fxe6+ Ke8) 39. Ke3 {[%emt 0:00:35]} Re8+ {[%emt 0:04:47]} 40. Kd2 $1 {[%emt 0:00:00]} Rd8+ {[%emt 0:00:00]} 41. Kc1 {[%emt 0:21:02]} Rh8 {[%emt 0:16:31]} 42. Kd2 {[%emt 0:03:00]} Rh3 {[%emt 0:00:40]} 43. Rf2 {[%emt 0:03:16]} Bh4 {[%emt 0:03:22]} 44. Rh2 {[%emt 0:01:47]} (44. Re2 $11) 44... Rxh2+ $17 {[%emt 0:00:35]} 45. Bxh2 {[%emt 0:00:02][%mdl 4096] Endgame KBB-KBN} Bg5+ {[%emt 0:00:39]} 46. Ke1 {[%emt 0:01:48]} Kf6 {[%emt 0:01:45]} (46... f4 $17 47. Nd3 Bh4+ 48. Kd2 f3 49. Ne5+ Ke6 50. Nxc6 bxc6) 47. Nd3 $15 {[%emt 0:01:02]} Bh4+ {[%emt 0:00:32]} 48. Kd2 {[%emt 0:01:07]} Be4 {[%emt 0:02:46]} 49. Nf4 {[%emt 0:00:57]} Kg5 {[%emt 0:00:48]} 50. Ke3 $1 {[%emt 0:00:22]} Bc6 {[%emt 0:00:52]} (50... Kg4 $5 {[%cal Rh4g5]} 51. Ng6 Bd8 52. Ne5+ Kh3 $15) 51. Nh3+ {[%emt 0:01:11]} Kg4 {[%emt 0:00:53]} 52. Nf2+ {[%emt 0:00:15]} Kh5 {[%emt 0:00:03]} (52... Bxf2+ $5 53. Kxf2 f4 $15) 53. Nd3 {[%emt 0:00:38]} Bg5+ {[%emt 0:00:14]} 54. Bf4 {[%emt 0:00:33]} Bd8 {[%emt 0:00:51]} 55. Ne5 {[%emt 0:00:34]} Bb6+ {[%emt 0:00:13]} 56. Kd2 {[%emt 0:00:27]} Kh4 {[%emt 0:01:14]} 57. Be3 {[%emt 0:00:34]} Bc7 {[%emt 0:00:21]} 58. Bf4 {[%emt 0:00:20]} Kh3 {[%emt 0:00:12]} 59. Ke2 {[%emt 0:01:09]} Be4 {[%emt 0:00:52]} 60. Kf2 {[%emt 0:00:18]} Bd8 {[%emt 0:01:57]} 61. Nf7 {[%emt 0:00:48]} Kg4 {[%emt 0:01:00]} 62. Nxd8 {[%emt 0:00:30] Threatens to win with Bc7.} Kxf4 $11 {[%emt 0:00:02] KB-KN} 63. Ne6+ $1 {[%emt 0:00:29]} Ke5 {[%emt 0:00:06]} 64. Nd4 {[%emt 0:00:33]} f4 {[%emt 0:00:25]} 65. Ke2 {[%emt 0:00:30]} Kd5 {[%emt 0:01:23]} 66. Kf2 {[%emt 0:00:23]} Ke5 {[%emt 0:00:44]} 67. Ke2 {[%emt 0:00:31]} Bg6 {[%emt 0:00:15]} 68. Nb3 {[%emt 0:00:32] The position is equal.} b6 {[%emt 0:00:27]} 69. Nd2 {[%emt 0:00:18]} Bf7 {[%emt 0:00:16]} 70. Kf3 {[%emt 0:00:25]} Bd5+ {[%emt 0:01:19]} 71. Kf2 {[%emt 0:00:12]} Kf5 {[%emt 0:01:37]} 72. Ke2 {[%emt 0:00:29]} Kg4 {[%emt 0:01:37]} 73. Kf2 {[%emt 0:00:15]} b5 {[%emt 0:00:42]} 74. Nf1 {[%emt 0:00:40]} Kf5 {[%emt 0:00:41] Hoping for ...Ke4.} 75. Nd2 {[%emt 0:00:06]} Ke5 {[%emt 0:00:04]} 76. Ke2 {[%emt 0:00:38]} Bc4+ {[%emt 0:01:39]} 77. Kf2 {[%emt 0:00:18]} Bg8 {[%emt 0:00:35]} 78. Kf3 {[%emt 0:00:26]} Bf7 {[%emt 0:00:35]} 79. Ke2 {[%emt 0:00:32]} Kf5 {[%emt 0:01:14]} 80. Kf2 {[%emt 0:00:28]} Bd5 {[%emt 0:00:10]} 81. Ke2 {[%emt 0:00:51]} Kg4 {[%emt 0:00:52] White must now prevent ...Kg3.} 82. Kf2 {[%emt 0:00:04]} f3 {[%emt 0:01:23]} 83. Nf1 {[%emt 0:00:18] White threatens Ne3+ and mate.} Kf4 {[%emt 0:00:15]} 84. Nd2 {[%emt 0:00:05]} Kg4 {[%emt 0:01:14] Weighted Error Value: White=0.15 (very precise) /Black=0.11 (very precise)} 1/2-1/2

[Event "Swietokrzyskie GM Chess-ch 2022"]
[Site "Zagnansk"]
[Date "2022.05.01"]
[Round "2.1"]
[White "Kowalski, IM Igor"]
[Black "Tazbir, GM Marcin"]
[Result "0-1"]
[ECO "E15"]
[WhiteElo "2370"]
[BlackElo "2506"]
[Annotator "TA"]
[PlyCount "86"]
[EventDate "2022.04.29"]
[EventCountry "POL"]
[SourceTitle "playchess.com"]
[Source "ChessBase"]
[SourceQuality "1"]
[TimeControl "40/5400+30:1800+30"]

{[%evp 10,86,20,13,22,24,35,12,29,37,36,0,34,20,27,25,58,38,38,33,47,16,29,35,31,22,33,10,21,35,28,20,31,37,31,20,39,40,65,45,58,40,47,70,46,15,16,15,10,6,14,10,6,0,23,0,0,0,43,68,80,0,138,126,93,0,0,-47,-47,-659,-649,-631,-597,-667,-659,-641,-575,-619,-632]} 1. d4 {[%emt 0:00:01]} Nf6 {[%emt 0:00:06]} 2. c4 {[%emt 0:00:04]} e6 {[%emt 0:00:04]} 3. Nf3 {[%emt 0:00:03]} b6 {[%emt 0:00:11]} 4. g3 {[%emt 0:00:05]} Ba6 {[%emt 0:00:05]} 5. b3 {[%emt 0:00:04]} d5 {[%emt 0:00:21]} 6. Bg2 {[%emt 0:00:11]} Be7 {[%emt 0:02:40] E15: Queen's Indian: 4 g3 sidelines, 4 g3 Ba6 and 4 g3 Bb7 early deviations.} 7. O-O {[%emt 0:00:07]} O-O {[%emt 0:00:07]} 8. cxd5 {[%emt 0:01:45]} exd5 {[%emt 0:00:13] The position is equal.} 9. Nc3 {[%emt 0:00:06]} Bb7 {[%emt 0:04:01]} 10. Bf4 {[%emt 0:01:35]} a6 {[%emt 0:04:28]} 11. a3 {[%emt 0:03:34][%cal Ba2a3,Ba3a4,Ba4a5][%mdl 32]} Re8 {[%emt 0:09:56]} 12. b4 {[%emt 0:01:18] [#]} Nh5 $146 {[%emt 0:01:56]} ({Predecessor:} 12... Nbd7 13. Qb3 Nf8 14. Rfd1 Ne6 15. Be5 c6 16. Rac1 Ra7 17. a4 Ba8 18. b5 cxb5 19. axb5 a5 20. Bxf6 Bxf6 {1-0 (52) Malakhatko,V (2507)-Zaibi,A (2373) Algiers 2015}) 13. Be3 {[%emt 0:03:38]} Nf6 {[%emt 0:02:51]} 14. Qb3 {[%emt 0:13:46]} Nbd7 {[%emt 0:04:07]} 15. Rfd1 {[%emt 0:01:15]} b5 {[%emt 0:05:36]} 16. a4 {[%emt 0:03:02]} c6 {[%emt 0:06:03]} 17. a5 {[%emt 0:02:42]} Bf8 {[%emt 0:00:20][%cal Oe8e3]} 18. Bg5 {[%emt 0:06:19][%cal Oe2e4]} Qe7 {[%emt 0:00:58]} 19. Rab1 {[%emt 0:02:15]} Qe6 {[%emt 0:02:52]} 20. Nd2 {[%emt 0:11:22]} Ng4 {[%emt 0:17:48]} 21. e4 {[%emt 0:14:11]} h6 {[%emt 0:00:28]} 22. Bf4 {[%emt 0:01:01]} g5 {[%emt 0:00:06]} 23. Be3 {[%emt 0:02:40]} Qg6 {[%emt 0:23:11]} 24. exd5 {[%emt 0:09:58]} Nxe3 {[%emt 0:08:57]} 25. fxe3 {[%emt 0:00:35] And now Rf1 would win.} Rac8 {[%emt 0:03:39]} 26. dxc6 {[%emt 0:07:46]} Bxc6 {[%emt 0:00:15]} 27. Bxc6 {[%emt 0:00:15]} (27. d5 $5 {[%cal Rd5c6]} Ba8 28. e4 $14) 27... Rxc6 {[%emt 0:01:16]} 28. Nd5 {[%emt 0:00:19]} Nf6 {[%emt 0:01:12] Prevents e4.} 29. Nxf6+ {[%emt 0:00:56]} Qxf6 {[%emt 0:00:07]} 30. Rf1 {[%emt 0:00:11]} Qe7 {[%emt 0:00:18]} 31. e4 {[%emt 0:02:18]} Rd8 {[%emt 0:00:49]} 32. Qe3 {[%emt 0:04:30]} (32. d5 $5 {[%cal Rd5c6]} Rc7 33. Rfe1 $14) 32... Bg7 {[%emt 0:00:54]} 33. e5 {[%emt 0:01:12]} Qa7 {[%emt 0:00:19]} (33... Qd7 $5 {[%cal Rd7d4]}) 34. Nb3 {[%emt 0:05:46]} Rc4 {[%emt 0:00:26]} 35. Rf2 {[%emt 0:01:46]} ({White should play} 35. Rf3 $16) 35... Qe7 {[%emt 0:00:28]} (35... Rxb4 $11 36. Rbf1 Qd7) 36. Rbf1 $16 {[%emt 0:00:24]} Qxb4 {[%emt 0:00:43] [#] White must now prevent ...Rc3.} 37. Rxf7 {[%emt 0:00:32]} (37. e6 $1 $16 Rc3 38. exf7+ Kf8 39. Qe4 Rxb3 40. Qh7 Qxd4 41. Qg8+ Ke7 42. Re1+ Re3 43. Rxe3+ Qxe3 44. Qxg7 Qe1+ 45. Kg2 Qe4+ 46. Rf3 Rd2+ 47. Kh3 g4+ 48. Qxg4 Qxg4+ 49. Kxg4) 37... Rc3 $11 {[%emt 0:00:07]} 38. Qe4 {[%emt 0:00:01]} (38. Qf2 $11 Qxb3 {[#]} 39. Rxg7+ $1 {[%mdl 512]} Kxg7 40. Qf6+ Kh7 41. Qe7+ (41. Qxd8 Rxg3+ 42. hxg3 Qxg3+ 43. Kh1 Qh3+ 44. Kg1 Qg3+ 45. Kh1 Qh3+ 46. Kg1 Qg3+ $11) 41... Kg6 42. Qxd8 Rxg3+ 43. Kh1 (43. hxg3 Qxg3+ 44. Kh1 Qh3+ 45. Kg1 Qg3+ 46. Kh1 Qh3+ 47. Kg1 Qg3+ $11)) 38... Rxb3 $15 {[%emt 0:00:49]} 39. e6 $2 {[%emt 0:01:24][%mdl 8192] This costs White the game.} (39. Qf5 $15 Qxd4+ 40. Rf2) 39... Qxd4+ $19 {[%emt 0:00:07] Black is clearly winning.} 40. Qxd4 {[%emt 0:00:00]} Bxd4+ {[%emt 0:00:00]} (40... Rxd4 $2 41. e7 Re3 42. Rf8+ Kh7 43. e8=Q Rxe8 44. Rxe8 $18) 41. Kh1 {[%emt 0:15:05] Strongly threatening e7.} Re8 {[%emt 0:16:34]} 42. Rd7 {[%emt 0:00:14]} Bg7 {[%emt 0:08:32]} 43. Rff7 {[%emt 0:00:22]} Be5 {[%emt 0:02:38] Weighted Error Value: White=0.37/Black=0.17 (very precise)} 0-1